[Event "MCR rapid mládeže 2023 U16"]
[Site "Harachov, Czech Republic"]
[Date "2023.09.09"]
[Round "5.26"]
[White "Stepankova, Linda"]
[Black "Strazhnyk, Viktoriia"]
[Result "1/2-1/2"]
[TimeControl "20min+5s/move"]
[WhiteElo "1124"]
[BlackElo "1392"]

1. e4 {[%clk 00:20:07]} {[%emt 00:00:02]} e6 {[%clk 00:20:08]} {[%emt
00:00:03]} 2. d4 {[%clk 00:20:10]} {[%emt 00:00:02]} d5 {[%clk 00:20:12]}
{[%emt 00:00:01]} 3. exd5 {[%clk 00:20:12]} {[%emt 00:00:04]} exd5 {[%emt
00:00:03]} 4. Bd3 {[%clk 00:19:45]} {[%emt 00:00:30]} c5 {[%clk 00:20:05]}
{[%emt 00:00:15]} 5. c3 {[%clk 00:16:24]} {[%emt 00:03:25]} Nc6 {[%clk
00:19:49]} {[%emt 00:00:21]} 6. Ne2 {[%clk 00:14:23]} {[%emt 00:02:07]} cxd4
{[%clk 00:19:45]} {[%emt 00:00:09]} 7. Nxd4 {[%clk 00:12:01]} {[%emt 00:02:26]}
Nxd4 {[%clk 00:19:41]} {[%emt 00:00:10]} 8. cxd4 {[%clk 00:12:04]} {[%emt
00:00:02]} Bb4+ {[%clk 00:19:43]} {[%emt 00:00:03]} 9. Bd2 {[%clk 00:10:48]}
{[%emt 00:01:20]} Bxd2+ {[%clk 00:19:39]} {[%emt 00:00:10]} 10. Qxd2 {[%clk
00:10:47]} {[%emt 00:00:06]} Qe7+ {[%clk 00:19:41]} {[%emt 00:00:03]} 11. Qe2
{[%clk 00:09:08]} {[%emt 00:01:44]} Qxe2+ {[%clk 00:19:43]} {[%emt 00:00:03]}
12. Bxe2 {[%clk 00:09:12]} {[%emt 00:00:02]} Bf5 {[%clk 00:19:46]} {[%emt
00:00:02]} 13. O-O {[%clk 00:08:50]} {[%emt 00:00:26]} Nf6 {[%clk 00:19:44]}
{[%emt 00:00:06]} 14. Nc3 {[%clk 00:08:39]} {[%emt 00:00:17]} O-O {[%clk
00:19:39]} {[%emt 00:00:10]} 15. Rfe1 {[%clk 00:08:16]} {[%emt 00:00:28]} Rfe8
{[%clk 00:19:30]} {[%emt 00:00:13]} 16. Bf3 {[%clk 00:08:08]} {[%emt 00:00:13]}
Be4 {[%clk 00:19:12]} {[%emt 00:00:23]} 17. Bxe4 {[%clk 00:07:08]} {[%emt
00:01:06]} dxe4 {[%clk 00:19:11]} {[%emt 00:00:06]} 18. Rad1 {[%clk 00:05:46]}
{[%emt 00:01:27]} Rad8 {[%clk 00:18:44]} {[%emt 00:00:32]} 19. h3 {[%clk
00:05:14]} {[%emt 00:00:37]} a6 {[%clk 00:18:27]} {[%emt 00:00:22]} 20. Kf1
{[%clk 00:03:48]} {[%emt 00:01:32]} h6 {[%clk 00:17:48]} {[%emt 00:00:44]} 21.
Re3 {[%clk 00:02:47]} {[%emt 00:01:06]} Nd5 {[%clk 00:16:40]} {[%emt 00:01:13]}
22. Nxd5 {[%clk 00:02:45]} {[%emt 00:00:06]} Rxd5 {[%clk 00:16:43]} {[%emt
00:00:02]} 23. f3 {[%clk 00:02:14]} {[%emt 00:00:36]} f5 {[%clk 00:16:41]}
{[%emt 00:00:07]} 24. g4 {[%clk 00:01:37]} {[%emt 00:00:42]} g6 {[%clk
00:16:37]} {[%emt 00:00:09]} 25. h4 {[%clk 00:01:05]} {[%emt 00:00:38]} h5
{[%clk 00:16:30]} {[%emt 00:00:12]} 26. gxh5 {[%clk 00:00:54]} {[%emt
00:00:15]} gxh5 {[%clk 00:16:33]} {[%emt 00:00:01]} 27. Rd2 {[%clk 00:00:40]}
{[%emt 00:00:20]} Kf7 {[%clk 00:16:35]} {[%emt 00:00:03]} 28. fxe4 {[%clk
00:00:44]} {[%emt 00:00:02]} fxe4 {[%clk 00:16:24]} {[%emt 00:00:16]} 29. Ke1
{[%clk 00:00:39]} {[%emt 00:00:10]} Kf6 {[%clk 00:16:21]} {[%emt 00:00:07]} 30.
a3 {[%clk 00:00:40]} {[%emt 00:00:04]} Kf5 {[%clk 00:16:22]} {[%emt 00:00:04]}
31. Rg3 {[%clk 00:00:26]} {[%emt 00:00:19]} Kf4 {[%clk 00:16:05]} {[%emt
00:00:21]} 32. Rg1 {[%clk 00:00:18]} {[%emt 00:00:13]} e3 {[%clk 00:16:02]}
{[%emt 00:00:09]} 33. Rd3 {[%clk 00:00:20]} {[%emt 00:00:03]} Re4 {[%clk
00:15:51]} {[%emt 00:00:15]} 34. Ke2 {[%clk 00:00:20]} {[%emt 00:00:06]} Rexd4
{[%clk 00:15:48]} {[%emt 00:00:08]} 35. Rxd4+ {[%clk 00:00:20]} {[%emt
00:00:05]} Rxd4 {[%clk 00:15:52]} {[%emt 00:00:01]} 36. Rg5 {[%clk 00:00:12]}
{[%emt 00:00:12]} Rd2+ {[%clk 00:15:51]} {[%emt 00:00:06]} 37. Ke1 {[%clk
00:00:13]} {[%emt 00:00:05]} Rxb2 {[%clk 00:15:47]} {[%emt 00:00:09]} 38. Rxh5
{[%clk 00:00:16]} {[%emt 00:00:02]} Kf3 {[%clk 00:15:38]} {[%emt 00:00:14]} 39.
Rf5+ {[%clk 00:00:16]} {[%emt 00:00:05]} Kg4 {[%clk 00:15:41]} {[%emt
00:00:01]} 40. Re5 {[%clk 00:00:17]} {[%emt 00:00:05]} Kxh4 {[%clk 00:15:26]}
{[%emt 00:00:21]} 41. Rxe3 {[%clk 00:00:20]} {[%emt 00:00:01]} Kg4 {[%clk
00:15:26]} {[%emt 00:00:05]} 42. Kd1 {[%clk 00:00:20]} {[%emt 00:00:05]} Kf4
{[%clk 00:15:23]} {[%emt 00:00:08]} 43. Rc3 {[%clk 00:00:16]} {[%emt 00:00:08]}
Rf2 {[%clk 00:15:16]} {[%emt 00:00:12]} 44. Rb3 {[%clk 00:00:13]} {[%emt
00:00:09]} Rf3 {[%clk 00:15:14]} {[%emt 00:00:07]} 45. Kc2 {[%clk 00:00:11]}
{[%emt 00:00:07]} Rxb3 46. Kxb3 {[%clk 00:00:14]} Ke5 {[%clk 00:15:16]} {[%emt
00:00:01]} 47. Kc4 {[%clk 00:00:16]} {[%emt 00:00:02]} Kd6 {[%clk 00:15:20]} 48.
a4 {[%clk 00:00:15]} {[%emt 00:00:07]} Kc6 {[%clk 00:15:24]} {[%emt 00:00:01]}
49. a5 {[%clk 00:00:17]} {[%emt 00:00:03]} Kd6 {[%clk 00:15:27]} {[%emt
00:00:02]} 50. Kd4 {[%clk 00:00:17]} {[%emt 00:00:06]} Kc6 {[%clk 00:15:21]}
{[%emt 00:00:10]} 51. Kc4 {[%clk 00:00:20]} {[%emt 00:00:01]} b5+ {[%clk
00:13:53]} {[%emt 00:01:33]} 52. axb6 {[%clk 00:00:19]} {[%emt 00:00:06]} Kxb6
{[%clk 00:13:57]} {[%emt 00:00:02]} 53. Kb4 {[%clk 00:00:20]} {[%emt 00:00:04]}
a5+ {[%clk 00:14:00]} {[%emt 00:00:02]} 54. Ka4 {[%clk 00:00:17]} {[%emt
00:00:07]} Ka6 {[%clk 00:14:01]} {[%emt 00:00:05]} 55. Kb3 {[%clk 00:00:17]}
{[%emt 00:00:05]} Kb5 {[%clk 00:14:04]} {[%emt 00:00:02]} 56. Ka3 {[%clk
00:00:19]} {[%emt 00:00:03]} a4 {[%clk 00:14:06]} {[%emt 00:00:03]} 57. Kb2
{[%clk 00:00:19]} {[%emt 00:00:05]} Kb4 {[%clk 00:14:10]} 58. Ka2 {[%clk
00:00:12]} {[%emt 00:00:12]} a3 {[%clk 00:14:13]} {[%emt 00:00:02]} 59. Kb1
{[%clk 00:00:12]} {[%emt 00:00:06]} Ka4 {[%clk 00:14:10]} {[%emt 00:00:07]} 60.
Ka2 {[%clk 00:00:11]} {[%emt 00:00:06]} Kb4 {[%clk 00:14:13]} {[%emt 00:00:02]}
61. Kb1 {[%clk 00:00:14]} {[%emt 00:00:01]} Ka4 {[%clk 00:14:16]} {[%emt
00:00:02]} 62. Ka2 {[%clk 00:00:19]} {[%emt 00:00:01]} Kb4 {[%clk 00:14:20]}
{[%emt 00:00:02]} 63. Kb1 {[%clk 00:00:09]} 1/2-1/2

[Event "MCR rapid mládeže 2023 U16"]
[Site "Harachov, Czech Republic"]
[Date "2023.09.09"]
[Round "5.27"]
[White "Lackova, Lucie"]
[Black "Kadlecova, Alena"]
[Result "0-1"]
[TimeControl "20min+5s/move"]
[WhiteElo "1544"]
[BlackElo "1020"]

1. e4 {[%clk 00:20:07]} {[%emt 00:00:02]} e5 {[%clk 00:20:09]} {[%emt
00:00:02]} 2. Nf3 {[%clk 00:20:11]} {[%emt 00:00:01]} Nf6 {[%clk 00:20:12]}
{[%emt 00:00:01]} 3. Nc3 {[%clk 00:20:15]} {[%emt 00:00:01]} Nc6 {[%clk
00:20:16]} 4. d4 {[%clk 00:20:06]} {[%emt 00:00:14]} exd4 {[%clk 00:20:16]}
{[%emt 00:00:05]} 5. Nxd4 {[%clk 00:20:10]} {[%emt 00:00:02]} Bc5 {[%clk
00:20:18]} {[%emt 00:00:03]} 6. Be3 {[%clk 00:20:09]} {[%emt 00:00:06]} Bb4
{[%clk 00:20:09]} {[%emt 00:00:14]} 7. f3 {[%clk 00:18:55]} {[%emt 00:01:19]}
d5 {[%clk 00:19:49]} {[%emt 00:00:23]} 8. Nxc6 {[%clk 00:14:59]} {[%emt
00:04:02]} bxc6 {[%clk 00:19:39]} {[%emt 00:00:15]} 9. Bd4 {[%clk 00:11:50]}
{[%emt 00:03:15]} dxe4 {[%clk 00:19:21]} {[%emt 00:00:22]} 10. fxe4 {[%clk
00:10:34]} {[%emt 00:01:22]} O-O {[%clk 00:19:04]} {[%emt 00:00:20]} 11. Bxf6
{[%clk 00:10:03]} {[%emt 00:00:37]} Qxf6 {[%clk 00:18:59]} {[%emt 00:00:09]} 12.
Qf3 {[%clk 00:08:46]} {[%emt 00:01:23]} Qh4+ {[%clk 00:18:08]} {[%emt
00:00:55]} 13. g3 {[%clk 00:07:56]} {[%emt 00:00:56]} Bxc3+ {[%clk 00:18:03]}
{[%emt 00:00:09]} 14. bxc3 {[%clk 00:07:56]} {[%emt 00:00:07]} Qe7 {[%clk
00:17:52]} {[%emt 00:00:11]} 15. Bg2 {[%clk 00:07:45]} {[%emt 00:00:20]} Qc5
{[%clk 00:17:23]} {[%emt 00:00:32]} 16. Qd3 {[%clk 00:06:35]} {[%emt 00:01:17]}
Be6 {[%clk 00:16:53]} {[%emt 00:00:31]} 17. Qd4 {[%clk 00:05:22]} {[%emt
00:01:22]} Qh5 {[%clk 00:16:08]} {[%emt 00:00:49]} 18. O-O {[%clk 00:04:43]}
{[%emt 00:00:45]} Qe2 {[%clk 00:16:03]} {[%emt 00:00:08]} 19. Qd3 {[%clk
00:03:49]} {[%emt 00:01:00]} Qh5 {[%clk 00:15:38]} {[%emt 00:00:30]} 20. Qf3
{[%clk 00:02:38]} {[%emt 00:01:11]} Qc5+ {[%clk 00:15:34]} {[%emt 00:00:12]} 21.
Kh1 {[%clk 00:02:38]} {[%emt 00:00:08]} Rad8 {[%clk 00:14:31]} {[%emt
00:01:07]} 22. Rfd1 {[%clk 00:01:22]} {[%emt 00:01:22]} Qe5 {[%clk 00:13:48]}
{[%emt 00:00:44]} 23. a3 {[%clk 00:01:02]} {[%emt 00:00:30]} a5 {[%clk
00:13:32]} {[%emt 00:00:21]} 24. Rab1 {[%clk 00:00:52]} {[%emt 00:00:16]} a4
{[%clk 00:13:05]} {[%emt 00:00:31]} 25. Rxd8 {[%clk 00:00:19]} {[%emt
00:00:38]} Rxd8 {[%clk 00:13:08]} {[%emt 00:00:02]} 26. Rb4 {[%clk 00:00:15]}
{[%emt 00:00:09]} Ra8 {[%clk 00:12:39]} {[%emt 00:00:34]} 27. Rb7 {[%clk
00:00:13]} {[%emt 00:00:06]} h6 {[%clk 00:12:33]} {[%emt 00:00:11]} 28. Qd3
{[%clk 00:00:15]} {[%emt 00:00:03]} Rc8 {[%clk 00:11:35]} {[%emt 00:01:02]} 29.
Rb4 {[%clk 00:00:18]} {[%emt 00:00:03]} Qa5 {[%clk 00:11:03]} {[%emt 00:00:35]}
30. Qd4 {[%clk 00:00:18]} {[%emt 00:00:07]} Ra8 {[%clk 00:10:58]} {[%emt
00:00:10]} 31. e5 {[%clk 00:00:21]} {[%emt 00:00:02]} c5 {[%clk 00:10:35]}
{[%emt 00:00:28]} 32. Qd1 {[%clk 00:00:15]} {[%emt 00:00:11]} cxb4 {[%clk
00:10:34]} {[%emt 00:00:06]} 33. Bxa8 {[%clk 00:00:19]} {[%emt 00:00:02]} Qxa8+
{[%clk 00:10:35]} {[%emt 00:00:03]} 34. Kg1 {[%clk 00:00:21]} {[%emt 00:00:04]}
Qa7+ {[%clk 00:10:35]} {[%emt 00:00:05]} 35. Kf1 {[%clk 00:00:21]} {[%emt
00:00:04]} Qa6+ {[%clk 00:10:22]} {[%emt 00:00:17]} 36. Kg1 {[%clk 00:00:24]}
{[%emt 00:00:04]} bxa3 {[%clk 00:10:24]} {[%emt 00:00:03]} 37. Qa1 {[%clk
00:00:26]} {[%emt 00:00:03]} a2 {[%clk 00:10:27]} {[%emt 00:00:02]} 38. Kf2
{[%clk 00:00:27]} {[%emt 00:00:04]} Qb6+ {[%clk 00:10:29]} {[%emt 00:00:02]} 39.
Ke2 {[%clk 00:00:28]} {[%emt 00:00:04]} Qb1 {[%clk 00:10:30]} {[%emt 00:00:04]}
40. Qxb1 {[%clk 00:00:32]} {[%emt 00:00:01]} axb1=Q {[%emt 00:00:04]} 41. Kd3
{[%emt 00:00:02]} a3 {[%clk 00:10:22]} {[%emt 00:00:08]} 42. h4 {[%clk
00:00:33]} {[%emt 00:00:03]} a2 {[%clk 00:10:25]} {[%emt 00:00:02]} 43. c4
{[%clk 00:00:37]} {[%emt 00:00:02]} a1=Q {[%clk 00:10:25]} {[%emt 00:00:05]} 44.
Ke3 {[%clk 00:00:40]} {[%emt 00:00:01]} Qxc2 {[%clk 00:10:27]} {[%emt
00:00:03]} 45. Kf3 {[%clk 00:00:44]} {[%emt 00:00:02]} Qa3+ {[%clk 00:10:29]}
{[%emt 00:00:02]} 46. Kf4 {[%clk 00:00:47]} {[%emt 00:00:02]} Qf5# {[%clk
00:10:29]} {[%emt 00:00:04]} 0-1

[Event "MCR rapid mládeže 2023 U16"]
[Site "Harachov, Czech Republic"]
[Date "2023.09.09"]
[Round "5.28"]
[White "Katasonova, Olga"]
[Black "Janouskova, Eliska"]
[Result "0-1"]
[TimeControl "20min+5s/move"]
[WhiteElo "1176"]
[BlackElo "1333"]

1. e4 {[%clk 00:20:09]} c5 {[%clk 00:20:09]} {[%emt 00:00:02]} 2. d4 {[%clk
00:20:12]} {[%emt 00:00:01]} cxd4 {[%clk 00:19:59]} {[%emt 00:00:15]} 3. c3
{[%clk 00:20:16]} {[%emt 00:00:01]} d3 {[%clk 00:19:53]} {[%emt 00:00:12]} 4.
Bxd3 {[%clk 00:20:18]} {[%emt 00:00:02]} d6 {[%clk 00:19:39]} {[%emt 00:00:19]}
5. Nf3 {[%clk 00:20:17]} {[%emt 00:00:06]} Nf6 {[%clk 00:19:24]} {[%emt
00:00:20]} 6. Bf4 {[%clk 00:20:07]} {[%emt 00:00:15]} e6 {[%clk 00:19:07]}
{[%emt 00:00:23]} 7. Nbd2 {[%clk 00:20:03]} {[%emt 00:00:09]} Nc6 {[%clk
00:18:36]} {[%emt 00:00:36]} 8. O-O {[%clk 00:19:05]} {[%emt 00:01:02]} Be7
{[%clk 00:18:33]} {[%emt 00:00:08]} 9. Re1 {[%clk 00:18:37]} {[%emt 00:00:33]}
O-O {[%clk 00:17:45]} {[%emt 00:00:53]} 10. e5 {[%clk 00:16:56]} {[%emt
00:01:46]} dxe5 {[%clk 00:17:33]} {[%emt 00:00:18]} 11. Nxe5 {[%clk 00:16:33]}
{[%emt 00:00:27]} Nxe5 {[%clk 00:17:35]} {[%emt 00:00:04]} 12. Bxh7+ {[%clk
00:16:22]} {[%emt 00:00:15]} Nxh7 {[%clk 00:17:31]} {[%emt 00:00:09]} 13. Bxe5
{[%clk 00:16:22]} {[%emt 00:00:05]} Bf6 {[%clk 00:17:15]} {[%emt 00:00:22]} 14.
Bxf6 {[%clk 00:15:03]} {[%emt 00:01:23]} Nxf6 {[%clk 00:17:02]} {[%emt
00:00:17]} 15. Qe2 {[%clk 00:13:58]} {[%emt 00:01:10]} Qc7 {[%clk 00:15:30]}
{[%emt 00:01:38]} 16. h3 {[%clk 00:13:14]} {[%emt 00:00:49]} b6 {[%clk
00:15:15]} {[%emt 00:00:21]} 17. Ne4 {[%clk 00:12:38]} {[%emt 00:00:39]} Nxe4
{[%clk 00:15:05]} {[%emt 00:00:15]} 18. Qxe4 {[%clk 00:12:40]} {[%emt
00:00:04]} Bb7 {[%clk 00:14:46]} {[%emt 00:00:25]} 19. Qh4 {[%clk 00:12:35]}
{[%emt 00:00:08]} Qc6 {[%clk 00:14:33]} {[%emt 00:00:19]} 20. f3 {[%clk
00:12:28]} {[%emt 00:00:11]} Qc5+ {[%clk 00:14:32]} {[%emt 00:00:07]} 21. Kh2
{[%clk 00:12:28]} {[%emt 00:00:04]} Qf5 {[%clk 00:14:27]} {[%emt 00:00:10]} 22.
Rac1 {[%clk 00:11:59]} {[%emt 00:00:35]} Rfd8 {[%clk 00:14:22]} {[%emt
00:00:11]} 23. Re2 {[%clk 00:11:53]} {[%emt 00:00:10]} Rd7 {[%clk 00:14:01]}
{[%emt 00:00:27]} 24. Qf2 {[%clk 00:11:35]} {[%emt 00:00:22]} Qf4+ {[%clk
00:13:57]} {[%emt 00:00:08]} 25. Kg1 {[%clk 00:11:14]} {[%emt 00:00:27]} Qxc1+
{[%clk 00:14:00]} {[%emt 00:00:03]} 26. Kh2 {[%clk 00:11:11]} {[%emt 00:00:07]}
Qf4+ {[%clk 00:14:02]} {[%emt 00:00:03]} 27. Kg1 {[%clk 00:11:14]} {[%emt
00:00:02]} Rd1+ {[%clk 00:14:05]} {[%emt 00:00:03]} 28. Re1 {[%clk 00:11:17]}
{[%emt 00:00:02]} Rxe1+ {[%clk 00:13:58]} {[%emt 00:00:12]} 29. Qxe1 {[%clk
00:11:19]} {[%emt 00:00:02]} Rd8 {[%clk 00:14:01]} {[%emt 00:00:02]} 30. Kf2
{[%clk 00:11:09]} {[%emt 00:00:15]} Qd2+ {[%clk 00:13:54]} {[%emt 00:00:13]} 31.
Kf1 {[%clk 00:11:09]} {[%emt 00:00:04]} Qc2 {[%clk 00:13:46]} {[%emt 00:00:13]}
32. b4 {[%clk 00:11:03]} {[%emt 00:00:11]} Rd1 {[%clk 00:13:49]} {[%emt
00:00:02]} 33. Qxd1 {[%clk 00:11:06]} {[%emt 00:00:02]} Qxd1+ {[%clk 00:13:52]}
{[%emt 00:00:02]} 0-1

[Event "MCR rapid mládeže 2023 U16"]
[Site "Harachov, Czech Republic"]
[Date "2023.09.09"]
[Round "5.29"]
[White "Mauric, Jan"]
[Black "Fadrny, Jachym"]
[Result "0-1"]
[TimeControl "20min+5s/move"]
[WhiteElo "1260"]
[BlackElo "1347"]

1. d4 {[%clk 00:20:08]} {[%emt 00:00:02]} e6 {[%clk 00:20:02]} {[%emt
00:00:08]} 2. Bf4 {[%clk 00:20:02]} {[%emt 00:00:10]} c5 {[%clk 00:19:57]}
{[%emt 00:00:11]} 3. e3 {[%clk 00:19:57]} {[%emt 00:00:10]} d5 {[%clk
00:19:36]} {[%emt 00:00:27]} 4. Nf3 {[%clk 00:19:50]} {[%emt 00:00:11]} Nc6
{[%clk 00:19:33]} {[%emt 00:00:07]} 5. Bb5 {[%clk 00:19:49]} {[%emt 00:00:06]}
Nf6 {[%clk 00:18:35]} {[%emt 00:01:04]} 6. Ne5 {[%clk 00:19:46]} {[%emt
00:00:08]} Bd7 {[%clk 00:18:13]} {[%emt 00:00:27]} 7. Nxd7 {[%clk 00:19:50]}
{[%emt 00:00:02]} Nxd7 {[%clk 00:18:10]} {[%emt 00:00:08]} 8. c3 {[%clk
00:19:22]} {[%emt 00:00:33]} a6 {[%clk 00:18:04]} {[%emt 00:00:10]} 9. Bxc6
{[%clk 00:19:24]} {[%emt 00:00:03]} bxc6 {[%clk 00:18:07]} {[%emt 00:00:02]} 10.
Nd2 {[%clk 00:18:54]} {[%emt 00:00:35]} h5 {[%clk 00:18:08]} {[%emt 00:00:04]}
11. Nf3 {[%clk 00:18:46]} {[%emt 00:00:13]} Be7 {[%clk 00:18:10]} {[%emt
00:00:03]} 12. h4 {[%clk 00:18:22]} {[%emt 00:00:30]} cxd4 {[%clk 00:18:06]}
{[%emt 00:00:09]} 13. cxd4 {[%clk 00:18:15]} {[%emt 00:00:12]} Qa5+ {[%clk
00:18:01]} {[%emt 00:00:09]} 14. Kf1 {[%clk 00:18:08]} {[%emt 00:00:12]} Qb4
{[%clk 00:17:34]} {[%emt 00:00:31]} 15. Qe2 {[%clk 00:17:54]} {[%emt 00:00:20]}
Bd6 {[%clk 00:16:10]} {[%emt 00:01:29]} 16. Bxd6 {[%clk 00:17:32]} {[%emt
00:00:26]} Qxd6 {[%clk 00:16:13]} {[%emt 00:00:03]} 17. g3 {[%clk 00:17:18]}
{[%emt 00:00:20]} c5 {[%clk 00:16:04]} {[%emt 00:00:13]} 18. dxc5 {[%clk
00:16:43]} {[%emt 00:00:40]} Nxc5 {[%clk 00:16:06]} {[%emt 00:00:02]} 19. Kg2
{[%clk 00:16:42]} {[%emt 00:00:07]} Ne4 {[%clk 00:15:55]} {[%emt 00:00:15]} 20.
Rac1 {[%clk 00:15:51]} {[%emt 00:00:57]} O-O {[%clk 00:15:35]} {[%emt
00:00:24]} 21. Rc2 {[%clk 00:15:50]} {[%emt 00:00:07]} Rac8 {[%clk 00:15:36]}
{[%emt 00:00:04]} 22. Rxc8 {[%clk 00:15:45]} {[%emt 00:00:10]} Rxc8 {[%clk
00:15:38]} {[%emt 00:00:03]} 23. Nd4 {[%clk 00:15:33]} {[%emt 00:00:17]} e5
{[%clk 00:15:17]} {[%emt 00:00:26]} 24. Nb3 {[%clk 00:14:40]} {[%emt 00:00:59]}
Qc6 {[%clk 00:14:25]} {[%emt 00:00:51]} 25. Rc1 {[%clk 00:14:27]} {[%emt
00:00:23]} Qb7 {[%clk 00:14:19]} {[%emt 00:00:11]} 26. Rxc8+ {[%clk 00:14:25]}
{[%emt 00:00:07]} Qxc8 {[%clk 00:14:23]} {[%emt 00:00:01]} 27. Qxh5 {[%clk
00:14:26]} {[%emt 00:00:04]} Qc2 {[%clk 00:14:13]} {[%emt 00:00:15]} 28. Qf3
{[%clk 00:13:19]} {[%emt 00:01:11]} Qxb2 {[%clk 00:14:09]} {[%emt 00:00:09]} 29.
Qf5 {[%clk 00:13:07]} {[%emt 00:00:18]} g6 {[%clk 00:13:25]} {[%emt 00:00:49]}
30. Kh3 {[%clk 00:11:18]} {[%emt 00:01:54]} Qxa2 {[%clk 00:12:39]} {[%emt
00:00:51]} 31. Qc8+ {[%clk 00:10:16]} {[%emt 00:01:07]} Kg7 {[%clk 00:12:30]}
{[%emt 00:00:13]} 32. Nc5 {[%clk 00:08:41]} {[%emt 00:01:41]} Nxf2+ {[%clk
00:11:47]} {[%emt 00:00:48]} 33. Kg2 {[%clk 00:08:43]} {[%emt 00:00:03]} Ne4+
{[%clk 00:11:27]} {[%emt 00:00:25]} 0-1

[Event "MCR rapid mládeže 2023 U16"]
[Site "Harachov, Czech Republic"]
[Date "2023.09.09"]
[Round "5.30"]
[White "Gernert , Tomas"]
[Black "Trejbal, Jindrich"]
[Result "1/2-1/2"]
[TimeControl "20min+5s/move"]
[WhiteElo "1236"]
[BlackElo "1088"]

1. e4 {[%clk 00:20:08]} {[%emt 00:00:01]} e5 {[%clk 00:20:09]} {[%emt
00:00:02]} 2. Nf3 {[%clk 00:20:12]} {[%emt 00:00:01]} Nf6 {[%clk 00:20:04]}
{[%emt 00:00:09]} 3. Nc3 {[%clk 00:20:15]} {[%emt 00:00:03]} Bb4 {[%clk
00:20:06]} {[%emt 00:00:03]} 4. d3 {[%clk 00:20:17]} {[%emt 00:00:02]} Nc6
{[%clk 00:19:47]} {[%emt 00:00:24]} 5. Bd2 {[%clk 00:20:15]} O-O {[%clk
00:17:55]} {[%emt 00:02:03]} 6. Be2 {[%clk 00:20:13]} d5 {[%clk 00:16:51]}
{[%emt 00:01:18]} 7. exd5 {[%clk 00:20:02]} Nxd5 {[%clk 00:16:25]} {[%emt
00:00:47]} 8. Nxd5 {[%clk 00:20:03]} Bxd2+ {[%clk 00:15:49]} {[%emt 00:00:45]}
9. Qxd2 {[%clk 00:20:07]} Qxd5 {[%clk 00:15:47]} {[%emt 00:00:08]} 10. O-O
{[%clk 00:20:03]} Nd4 {[%clk 00:14:28]} {[%emt 00:01:33]} 11. Nxd4 {[%clk
00:19:46]} exd4 {[%clk 00:12:57]} {[%emt 00:01:57]} 12. Bf3 {[%clk 00:19:46]}
Qd6 {[%clk 00:10:34]} {[%emt 00:02:34]} 13. Rfe1 {[%clk 00:19:18]} Bd7 {[%clk
00:08:54]} {[%emt 00:02:17]} 14. Re2 {[%clk 00:18:59]} c6 {[%clk 00:08:01]}
{[%emt 00:01:22]} 15. Rae1 {[%clk 00:18:51]} Rae8 {[%clk 00:07:09]} {[%emt
00:01:10]} 16. h3 {[%clk 00:16:57]} {[%emt 00:02:00]} h6 {[%clk 00:05:30]}
{[%emt 00:01:44]} 17. g4 {[%clk 00:15:14]} {[%emt 00:01:47]} Rxe2 {[%clk
00:03:49]} {[%emt 00:01:47]} 18. Rxe2 {[%clk 00:14:50]} {[%emt 00:00:28]} Re8
{[%clk 00:03:07]} {[%emt 00:00:48]} 19. Qe1 {[%clk 00:14:46]} {[%emt 00:00:09]}
Rxe2 {[%clk 00:02:57]} {[%emt 00:00:14]} 20. Qxe2 {[%clk 00:14:49]} {[%emt
00:00:01]} Qe6 {[%clk 00:02:49]} {[%emt 00:00:13]} 21. Qxe6 {[%clk 00:13:57]}
{[%emt 00:00:58]} Bxe6 {[%clk 00:02:34]} {[%emt 00:00:20]} 22. a3 {[%clk
00:14:01]} {[%emt 00:00:01]} Kf8 {[%clk 00:02:31]} {[%emt 00:00:07]} 23. Be4
{[%clk 00:13:55]} {[%emt 00:00:10]} Ke7 {[%clk 00:02:30]} {[%emt 00:00:07]} 24.
f4 {[%clk 00:13:59]} {[%emt 00:00:01]} Kd6 {[%clk 00:02:22]} {[%emt 00:00:14]}
25. f5 {[%clk 00:13:12]} {[%emt 00:00:52]} Bd5 {[%clk 00:02:16]} {[%emt
00:00:10]} 1/2-1/2